bitfinex/quotes_SOLUSD_20260201
["timestamp","ask_amount","ask_price","bid_price","bid_amount"]
[1769985502909,3.88479448,102.44,102.37,13.4832755]
[1769985503303,3.88479448,102.44,102.39,13.48228942]
[1769985503712,34.15300546,102.48,102.4,3.71572189]
[1769985504004,3.88479448,102.47,102.41,3.71572189]
[1769985504907,13.64388685,102.47,102.42,13.47943991]
[1769985505107,13.64388685,102.47,102.42,3.71572189]
[1769985506510,3.88479448,102.47,102.42,13.47909224]
[1769985507408,13.64375464,102.47,102.42,13.47909224]
[1769985507608,3.88479448,102.47,102.42,13.47909224]
[1769985507815,3.88479448,102.46,102.39,3.71572189]
[1769985507992,3.88479448,102.46,102.4,9.76525131]
[1769985508310,3.88479448,102.46,102.4,3.71572189]
[1769985508508,13.64485427,102.46,102.41,13.47961387]
[1769985508815,13.64485427,102.46,102.42,3.71572189]
[1769985508998,9.75923926,102.47,102.42,3.71572189]
[1769985509202,13.64403374,102.47,102.42,3.71572189]
[1769985509408,9.75923926,102.47,102.42,3.71572189]
[1769985510689,9.75923926,102.47,102.42,13.47924047]
[1769985510906,38.04141834,102.47,102.42,3.71572189]
[1769985511098,13.64403374,102.47,102.42,13.47919253]
[1769985511503,3.88479448,102.46,102.41,9.76434179]
[1769985511812,3.88479448,102.46,102.4,13.48101529]
[1769985512008,3.88479448,102.46,102.4,3.71572189]
[1769985512392,3.88479448,102.46,102.37,3.71572189]
[1769985512698,3.88479448,102.46,102.34,24.42677455]
[1769985512699,3.88479448,102.42,102.35,13.48552034]
[1769985513100,3.88479448,102.42,102.36,9.76886437]
[1769985513294,3.88479448,102.42,102.35,3.71572189]
[1769985513714,3.88479448,102.42,102.36,9.76941751]
[1769985513900,3.88479448,102.42,102.35,3.71572189]
[1769985514107,3.88479448,102.42,102.35,13.48556654]
[1769985515012,3.88479448,102.4,102.35,3.71572189]
[1769985515610,9.76467141,102.41,102.36,3.71572189]
[1769985515820,3.88479448,102.43,102.36,3.71572189]
[1769985516196,13.64598347,102.45,102.36,3.71572189]
[1769985517091,3.88479448,102.45,102.38,3.71572189]
[1769985517502,3.70518033,102.49,102.4,3.70381517]
[1769985517701,3.70518033,102.49,102.42,3.70381517]
[1769985518305,3.70518033,102.49,102.43,9.21263885]
[1769985518517,3.70518033,102.51,102.44,3.70381517]
[1769985519215,3.70518033,102.5,102.45,13.46467412]
[1769985519819,13.46112676,102.51,102.46,3.70381517]
[1769985520021,3.70518033,102.5,102.45,13.46467412]
[1769985520317,34.14381102,102.51,102.46,3.70381517]
[1769985520520,3.70518033,102.5,102.45,13.46467412]
[1769985521029,13.46134388,102.5,102.45,13.46467412]
[1769985521325,3.70518033,102.5,102.45,37.8668215]
[1769985521514,13.46142874,102.5,102.45,13.46467412]
[1769985522607,3.70518033,102.49,102.44,9.76146033]
[1769985523326,3.70518033,102.48,102.44,9.76146033]
[1769985526826,13.46375027,102.48,102.43,13.46613128]
[1769985527128,13.46375027,102.48,102.42,40.69177379]
[1769985527129,3.84469928,102.47,102.42,40.69177379]
[1769985527715,3.84469928,102.47,102.42,13.57177379]
[1769985528813,3.84469928,102.45,102.4,40.69349975]
[1769985529011,3.84469928,102.45,102.38,13.57539272]
[1769985530432,34.16634127,102.44,102.38,13.57539272]
[1769985530635,3.84469928,102.43,102.38,13.57539272]
[1769985531239,3.84469928,102.43,102.39,3.8083725]
[1769985532137,13.60832449,102.43,102.39,3.8083725]
[1769985532338,3.84469928,102.42,102.38,9.76702022]
[1769985532530,3.84469928,102.42,102.37,13.57657978]
[1769985532905,3.84469928,102.42,102.36,40.69725067]
[1769985533329,3.84469928,102.42,102.36,30.9283725]
[1769985533532,3.84469928,102.42,102.34,3.8083725]
[1769985533717,3.84469928,102.42,102.32,13.58138971]
[1769985533917,3.84469928,102.42,102.3,24.63660908]
[1769985533918,3.84469928,102.37,102.3,4.0083725]
[1769985534106,3.84469928,102.37,102.3,13.78323029]
[1769985534312,3.84469928,102.35,102.3,13.78323029]
[1769985535111,3.84469928,102.35,102.3,4.0083725]
[1769985535622,3.84469928,102.37,102.31,3.8083725]
[1769985535933,3.84469928,102.39,102.31,3.8083725]
[1769985536337,3.84469928,102.39,102.3,46.28332421]
[1769985536338,3.84469928,102.39,102.33,3.8083725]
[1769985536817,3.84469928,102.39,102.34,3.8083725]
[1769985537342,3.84469928,102.41,102.34,3.8083725]
[1769985537834,3.84469928,102.41,102.35,3.8083725]
[1769985538412,3.84469928,102.41,102.36,38.00141664]
[1769985538832,3.84469928,102.41,102.37,3.8083725]
[1769985539229,3.84469928,102.43,102.37,3.8083725]
[1769985540221,13.6075177,102.43,102.37,3.8083725]
[1769985540731,13.6075177,102.43,102.38,9.76753272]
[1769985540931,13.6075177,102.43,102.38,13.57590522]
[1769985541137,3.84469928,102.43,102.38,37.99473702]
[1769985541644,13.60751188,102.43,102.38,37.99473702]
[1769985541948,3.84469928,102.42,102.37,13.57641526]
[1769985542815,13.60846767,102.42,102.37,13.57641526]
[1769985543538,3.84469928,102.41,102.37,13.57641526]
[1769985543740,3.84469928,102.41,102.37,9.76804276]
[1769985544441,3.84469928,102.41,102.36,13.57776592]
[1769985544817,3.84469928,102.41,102.35,9.77015286]
[1769985545033,3.84469928,102.41,102.33,27.14]
[1769985545034,3.84469928,102.39,102.33,3.8083725]
[1769985545439,3.84469928,102.39,102.32,9.77251257]
[1769985545947,3.84469928,102.39,102.3,0.2]
[1769985546247,3.84469928,102.36,102.3,0.2]
[1769985546421,3.84469928,102.36,102.3,9.97504042]
[1769985546620,3.84469928,102.36,102.31,9.77412042]
[1769985547040,13.61509498,102.35,102.31,9.77412042]
[1769985547243,3.84469928,102.34,102.3,9.97469747]
[1769985548047,3.84469928,102.34,102.3,0.2]
[1769985549142,9.77230528,102.33,102.3,0.2]
[1769985549357,3.6759596,102.35,102.3,13.60427517]
[1769985549922,3.6759596,102.34,102.3,0.2]
[1769985550117,34.1966811,102.35,102.3,3.82936632]
[1769985550118,9.77069185,102.35,102.3,3.82936632]
[1769985550346,13.44665145,102.35,102.3,13.60438216]
[1769985550547,3.6759596,102.35,102.31,3.62936632]
[1769985551242,3.6759596,102.37,102.32,13.40262667]
[1769985551753,3.6759596,102.37,102.32,37.83577756]
[1769985551964,3.6759596,102.37,102.33,3.62936632]
[1769985552256,3.6759596,102.39,102.33,3.62936632]
[1769985552456,13.44090311,102.41,102.33,3.62936632]
[1769985552759,9.76395289,102.42,102.35,3.62936632]
[1769985553359,13.43888434,102.43,102.37,3.62936632]
[1769985553929,3.6759596,102.43,102.37,3.62936632]
[1769985554341,3.6759596,102.45,102.37,3.62936632]
[1769985554656,3.6759596,102.45,102.39,3.62936632]
[1769985555252,3.6759596,102.45,102.4,34.1796875]
[1769985555457,13.43527439,102.47,102.41,3.62936632]
[1769985555634,3.6759596,102.47,102.41,3.62936632]
[1769985556650,3.6759596,102.46,102.41,3.62936632]
[1769985557458,3.6759596,102.46,102.42,9.76371802]
[1769985558966,3.6759596,102.48,102.42,3.62936632]
[1769985560470,3.6759596,102.48,102.43,9.76276481]
[1769985560972,9.75649349,102.5,102.44,3.62936632]
[1769985561170,15.85323467,102.51,102.44,3.62936632]
[1769985561467,15.85323467,102.51,102.45,3.62936632]
[1769985561468,6.0980076,102.51,102.45,3.62936632]
[1769985561847,3.7759596,102.52,102.48,3.62936632]
[1769985562269,0.1,102.52,102.49,9.75704946]
[1769985563352,3.6759596,102.55,102.5,3.62936632]
[1769985564348,13.42734474,102.55,102.51,9.75514583]
[1769985564569,3.6759596,102.55,102.51,9.75514583]
[1769985564866,13.42744176,102.55,102.51,9.75514583]
[1769985565068,3.6759596,102.54,102.5,3.62936632]
[1769985565361,3.6759596,102.54,102.48,28.02271455]
[1769985565768,3.6759596,102.54,102.48,13.3869449]
[1769985566572,13.42920255,102.53,102.48,13.3869449]
[1769985567268,3.6759596,102.52,102.48,9.75757858]
[1769985567472,3.6759596,102.51,102.47,36.87850274]
[1769985567676,3.6759596,102.51,102.45,3.62936632]
[1769985568354,3.6759596,102.51,102.47,9.7587696]
[1769985568877,3.6759596,102.53,102.48,3.62936632]
[1769985569557,9.75272736,102.54,102.49,13.38641578]
[1769985569757,13.42745161,102.55,102.49,37.77903945]
[1769985570257,13.42745161,102.55,102.5,3.62936632]
[1769985570258,3.6759596,102.55,102.5,3.62936632]
[1769985571573,3.6759596,102.55,102.51,34.14301042]
[1769985571877,3.6759596,102.56,102.51,37.77237674]
[1769985572488,13.42567221,102.57,102.52,3.62936632]
[1769985572788,13.42567221,102.57,102.53,9.75324295]
[1769985573165,3.6759596,102.56,102.5,3.62936632]
[1769985573476,3.6759596,102.56,102.5,13.38498777]
[1769985573681,3.6759596,102.56,102.48,3.62936632]
[1769985573882,3.6759596,102.56,102.48,9.7574929]
[1769985574190,3.6759596,102.56,102.48,13.38685922]
[1769985574562,3.6759596,102.53,102.47,13.38804444]
[1769985574758,13.4301539,102.52,102.47,13.38804444]
[1769985574975,3.6759596,102.51,102.47,3.62936632]
[1769985575169,3.6759596,102.51,102.47,13.38818938]
[1769985575978,3.6759596,102.51,102.47,3.62936632]
[1769985576183,3.6759596,102.51,102.44,13.39073793]
[1769985576683,3.6759596,102.51,102.44,9.76178935]
[1769985576981,3.6759596,102.49,102.44,9.76178935]
[1769985579285,48.75006335,102.57,102.43,3.62936632]
[1769985579286,13.97835728,102.59,102.49,3.98536922]
[1769985579483,13.97835728,102.59,102.5,31.08536922]
[1769985579687,9.84913656,102.58,102.51,3.98536922]
[1769985579986,34.22035902,102.58,102.5,31.08536922]
[1769985580285,82.96280394,102.58,102.48,3.98536922]
[1769985580871,5.36086188,102.57,102.46,3.98536922]
[1769985581286,4.27527085,102.53,102.46,3.98536922]
[1769985581583,4.27527085,102.53,102.44,49.70367157]
[1769985581584,3.89806606,102.51,102.45,9.76023835]
[1769985581783,3.89806606,102.51,102.45,9.76061908]
[1769985582282,3.89806606,102.51,102.46,13.74494361]
[1769985583274,13.65339963,102.51,102.46,13.74494361]
[1769985583593,3.89806606,102.5,102.46,3.98536922]
[1769985583889,3.89806606,102.5,102.46,13.74525548]
[1769985586198,13.65439657,102.5,102.46,13.74525548]
[1769985586382,13.65439657,102.5,102.45,9.76051077]
[1769985586973,3.85795742,102.49,102.44,13.55584631]
[1769985587187,3.85795742,102.49,102.43,13.5567259]
[1769985587390,13.61595898,102.48,102.43,13.5567259]
[1769985588095,3.85795742,102.47,102.43,13.5567259]
[1769985588293,9.75800156,102.48,102.43,9.76248578]
[1769985588487,3.85795742,102.49,102.44,3.79424012]
[1769985589281,13.61558872,102.49,102.44,3.79424012]
[1769985589683,13.61558872,102.49,102.44,13.55559943]
[1769985589684,38.00821239,102.49,102.44,13.55559943]
[1769985589884,3.85795742,102.48,102.44,13.55559943]
[1769985590294,13.61434178,102.5,102.45,3.79424012]
[1769985590492,3.85795742,102.49,102.45,3.79424012]
[1769985591580,3.85795742,102.49,102.45,13.55488536]
[1769985592499,3.85795742,102.51,102.45,37.95703274]
[1769985592707,13.61310325,102.51,102.46,3.79424012]
[1769985593608,13.61310325,102.51,102.47,9.75895384]
[1769985593920,3.85795742,102.5,102.47,9.75895384]
[1769985596895,13.61265781,102.52,102.47,13.55319396]
[1769985597403,3.85795742,102.51,102.47,3.79424012]
[1769985598779,13.61405498,102.5,102.46,9.7594251]
[1769985598986,3.85795742,102.49,102.42,3.79424012]
[1769985599191,3.85795742,102.49,102.41,9.76409341]
[1769985599387,3.85795742,102.49,102.4,9.76505996]
[1769985599602,3.85795742,102.49,102.4,3.79424012]
[1769985599786,3.85795742,102.46,102.39,13.5600597]
[1769985600191,4.27527085,102.46,102.36,0.2]
[1769985600507,3.85795742,102.41,102.36,0.2]
[1769985600688,4.27527085,102.42,102.37,3.79424012]
[1769985600888,3.85795742,102.4,102.36,0.2]
[1769985601201,3.85795742,102.4,102.36,1e-08]
[1769985601405,3.85795742,102.38,102.31,3.79424012]
[1769985601603,3.85795742,102.38,102.3,0.2]
[1769985602184,3.85795742,102.38,102.27,3.79424012]
[1769985602400,3.85795742,102.34,102.27,3.79424012]
[1769985602615,3.85795742,102.34,102.29,3.79424012]
[1769985603323,13.62990905,102.34,102.29,13.57020527]
[1769985603702,38.0538313,102.36,102.3,3.79424012]
[1769985604019,13.62833576,102.36,102.3,3.79424012]
[1769985604226,13.62705387,102.37,102.3,3.59918012]
[1769985604919,3.85795742,102.37,102.3,3.59918012]
[1769985605120,27.12,102.38,102.3,3.59918012]
[1769985605298,27.12,102.38,102.29,92.2560651]
[1769985605299,13.62509463,102.39,102.31,34.20975465]
[1769985606200,13.62509463,102.39,102.34,3.79424012]
[1769985606821,31.39527085,102.42,102.34,3.79424012]
[1769985606822,13.62349709,102.41,102.34,3.79424012]
[1769985607133,51.52947303,102.42,102.34,3.79424012]
[1769985607134,13.62207976,102.42,102.34,3.79424012]
[1769985607728,3.74778391,102.41,102.34,3.79424012]
[1769985608036,3.74778391,102.4,102.34,3.79424012]
[1769985608318,3.74778391,102.38,102.32,3.69680776]
[1769985608722,3.74778391,102.38,102.32,13.46997759]
[1769985609919,38.45829652,102.39,102.32,13.46997759]
[1769985609920,13.51627077,102.37,102.32,13.46997759]
[1769985611423,13.51627077,102.37,102.32,3.69680776]
[1769985611916,3.74778391,102.36,102.3,9.77484228]
[1769985612098,3.74778391,102.36,102.3,13.47165004]
[1769985613320,3.74778391,102.36,102.3,3.69680776]
[1769985614098,13.51817961,102.35,102.3,3.69680776]
[1769985614617,13.51760429,102.36,102.31,3.69680776]
[1769985615023,3.74778391,102.36,102.31,3.69680776]
[1769985616116,13.51726506,102.36,102.31,13.47024124]
[1769985616315,13.51570299,102.38,102.32,3.69680776]
[1769985617327,3.74778391,102.4,102.32,3.69680776]
[1769985617517,3.74778391,102.41,102.32,3.69680776]
[1769985618324,3.74778391,102.4,102.34,3.69680776]
[1769985619240,3.74778391,102.39,102.32,3.69680776]
[1769985619913,3.74778391,102.39,102.31,3.69680776]
[1769985620316,3.74778391,102.37,102.32,9.77326035]
[1769985620522,3.74778391,102.37,102.32,13.47006811]
[1769985623237,9.76944118,102.36,102.32,13.47006811]
[1769985624236,13.51722509,102.36,102.32,13.47006811]
[1769985624924,13.01722509,102.36,102.32,3.69680776]
[1769985625330,37.44082805,102.36,102.32,3.69680776]
[1769985625543,3.74778391,102.35,102.3,3.69680776]
[1769985626322,3.74778391,102.35,102.27,13.4745752]
[1769985626523,3.74778391,102.35,102.28,3.69680776]
[1769985627040,3.74778391,102.33,102.27,3.69680776]
[1769985627741,3.74778391,102.33,102.25,13.6762735]
[1769985627936,87.33174925,102.34,102.25,3.89680776]
[1769985627937,3.74778391,102.3,102.25,3.89680776]
[1769985628138,3.74778391,102.3,102.25,13.67639925]
[1769985628326,3.74778391,102.3,102.26,13.47487687]
[1769985628732,3.74778391,102.3,102.26,3.69680776]
[1769985629045,13.52298413,102.3,102.26,13.47564528]
[1769985629244,13.52298413,102.3,102.26,3.69680776]
[1769985629436,37.96091179,102.3,102.26,3.69680776]
[1769985629745,3.74778391,102.29,102.25,0.2]
[1769985630248,3.74778391,102.29,102.25,3.89680776]
[1769985630949,3.74778391,102.29,102.25,0.2]
[1769985631452,13.52486642,102.28,102.25,0.2]
[1769985631628,37.96757271,102.28,102.25,0.2]
[1769985633449,3.74778391,102.27,102.23,3.69680776]
[1769985634453,3.74778391,102.27,102.23,13.47819304]
[1769985635156,17.79940078,102.29,102.24,3.69680776]
[1769985635456,13.52412993,102.29,102.24,3.69680776]
[1769985636252,13.52412993,102.29,102.25,3.69680776]
[1769985637648,3.74778391,102.29,102.25,3.69680776]
[1769985639258,9.77517106,102.3,102.26,3.71367764]
[1769985640645,13.46939344,102.3,102.26,3.71367764]
[1769985641155,13.46939344,102.3,102.26,13.49264473]
[1769985641776,36.93460521,102.31,102.27,3.71367764]
[1769985642053,7.96949323,102.32,102.27,3.71367764]
[1769985642054,14.04864558,102.32,102.27,3.71367764]
[1769985642253,13.46759711,102.32,102.27,3.71367764]
[1769985642450,13.46759711,102.32,102.27,9.77709602]
[1769985642659,13.46759711,102.32,102.28,3.71367764]
[1769985644252,3.69422238,102.31,102.25,9.7794902]
[1769985644457,3.69422238,102.31,102.25,3.71367764]
[1769985644662,3.69422238,102.31,102.25,13.49362586]
[1769985645160,3.69422238,102.31,102.25,3.71367764]
[1769985645539,3.70959845,102.29,102.25,3.71367764]
[1769985645762,3.70959845,102.29,102.23,13.48059317]
[1769985646464,3.70959845,102.28,102.21,13.48316139]
[1769985646647,3.70959845,102.28,102.21,3.69957759]
[1769985646840,3.70959845,102.26,102.21,3.69957759]
[1769985647050,3.70959845,102.26,102.2,3.69957759]
[1769985647547,3.70959845,102.26,102.19,0.2]
[1769985647748,3.70959845,102.24,102.19,0.2]
[1769985649870,9.78186442,102.23,102.19,3.89957759]
[1769985650057,9.78186442,102.23,102.19,13.68505959]
[1769985650362,13.49062196,102.24,102.2,3.69957759]
[1769985650871,9.78102351,102.24,102.2,3.69957759]
[1769985651250,3.70959845,102.27,102.2,3.69957759]
[1769985651445,9.77899471,102.26,102.2,3.69957759]
[1769985651672,13.4881201,102.27,102.2,3.69957759]
[1769985651866,9.77758061,102.28,102.22,3.69957759]
[1769985653269,3.70959845,102.27,102.22,3.69957759]
[1769985654352,9.77899471,102.26,102.22,3.69957759]
[1769985655177,34.2264815,102.26,102.22,3.69957759]
[1769985655472,37.93607995,102.26,102.22,3.69957759]
[1769985656955,13.48859316,102.26,102.22,3.69957759]
[1769985659779,9.77899471,102.26,102.22,3.69957759]
[1769985660877,3.70959845,102.26,102.21,13.48335608]
[1769985661071,3.70959845,102.25,102.2,3.69957759]
[1769985661253,3.70959845,102.25,102.19,13.68516403]
[1769985662181,3.70959845,102.25,102.19,3.89957759]
[1769985662472,3.70959845,102.24,102.19,0.2]
[1769985662781,3.70959845,102.22,102.19,0.2]
[1769985665573,9.78377849,102.21,102.19,0.2]
[1769985667863,13.41778863,102.21,102.19,0.2]
[1769985668883,3.63401014,102.2,102.14,3.88253824]
[1769985670373,13.41899934,102.2,102.15,3.68253824]
[1769985671286,13.41899934,102.2,102.16,3.68253824]
[1769985672287,13.41899934,102.2,102.16,13.47075565]
[1769985673198,13.41899934,102.2,102.16,3.68253824]
[1769985673400,37.88083887,102.2,102.16,3.68253824]
[1769985673900,3.63401014,102.19,102.15,3.68253824]
[1769985674100,3.63401014,102.19,102.14,13.67232198]
[1769985674399,3.63401014,102.19,102.14,3.88253824]
[1769985675497,3.63401014,102.17,102.11,9.79288088]
[1769985676194,3.63401014,102.16,102.1,9.79403293]
[1769985676698,13.42353534,102.15,102.1,9.79403293]
[1769985677398,13.42353534,102.15,102.1,13.47657117]
[1769985677905,3.63401014,102.14,102.1,3.68253824]
[1769985678776,3.63401014,102.11,101.99,0.2]
[1769985678979,3.63401014,102.11,102.02,5.56086188]
[1769985679308,3.63401014,102.11,102.02,0.2]
[1769985679498,3.63401014,102.11,102.02,15.58]
[1769985679789,3.63401014,102.11,102.04,9.79954439]
[1769985679988,3.63401014,102.11,102.03,27.2]
[1769985680191,3.63401014,102.07,102.02,0.2]
[1769985680791,9.79815794,102.06,102.02,0.2]
[1769985680977,13.43216808,102.06,102.02,3.88253824]
[1769985681294,3.63401014,102.06,102.02,0.2]
[1769985682998,9.79911807,102.05,102.02,0.2]
[1769985683614,3.63401014,102.08,102.02,10.00188271]
[1769985683899,3.63401014,102.08,102.03,3.68253824]
[1769985684883,3.63401014,102.08,102.04,13.48261664]
[1769985687602,13.42786209,102.11,102.05,3.68253824]
[1769985687786,3.63401014,102.11,102.05,3.68253824]
[1769985688110,13.42592437,102.13,102.05,3.68253824]
[1769985688287,13.42592437,102.13,102.06,3.68253824]
[1769985688797,3.63401014,102.13,102.06,3.68253824]
[1769985688984,3.63401014,102.13,102.08,3.68253824]
[1769985689593,13.42496048,102.14,102.08,3.68253824]
[1769985689799,13.42496048,102.14,102.09,13.47781691]
[1769985690816,13.42496048,102.14,102.1,3.68253824]
[1769985693507,13.42496048,102.14,102.1,13.47674516]
[1769985694002,3.63401014,102.18,102.11,3.68253824]
[1769985694187,3.63401014,102.18,102.13,3.68253824]
[1769985694584,13.41970345,102.19,102.13,3.68253824]
[1769985694799,13.41970345,102.19,102.15,3.68253824]
[1769985695387,3.63401014,102.18,102.14,36.99015326]
[1769985695588,3.63401014,102.18,102.14,30.88253824]
[1769985696311,3.63401014,102.18,102.14,40.67297391]
[1769985697307,13.42104586,102.18,102.14,40.67297391]
[1769985699611,13.68258491,102.2,102.15,3.7121842]
[1769985700011,3.7978491,102.19,102.15,3.7121842]
[1769985702315,13.58393138,102.19,102.15,3.7121842]
[1769985704016,13.58393138,102.19,102.15,13.50168594]
[1769985705319,3.7978491,102.18,102.14,36.99003259]
[1769985705817,3.7978491,102.18,102.14,40.69850284]
[1769985707323,13.58452065,102.18,102.14,40.69850284]
[1769985709215,3.77441129,102.17,102.14,27.2]
[1769985711321,3.77441129,102.16,102.14,27.2]
[1769985712011,3.77441129,102.16,102.11,3.70551736]
[1769985712211,3.77441129,102.16,102.08,13.5328929]
[1769985712414,3.77441129,102.16,102.09,3.73711639]
[1769985712607,3.77441129,102.13,102.08,3.73711639]
[1769985712922,3.77441129,102.13,102.07,3.73711639]
[1769985713224,3.77441129,102.13,102.06,30.93711639]
[1769985713521,3.77441129,102.11,102.06,30.93711639]
[1769985714211,3.77441129,102.11,102.06,3.73711639]
[1769985715326,9.79431929,102.1,102.06,3.73711639]
[1769985715524,13.56873058,102.1,102.06,3.73711639]
[1769985717516,13.56821565,102.11,102.07,3.73711639]
[1769985717917,73.43841833,102.13,102.07,3.73711639]
[1769985717918,9.79271525,102.12,102.07,3.73711639]
[1769985718616,3.77441129,102.12,102.08,13.53335463]
[1769985719411,3.77441129,102.14,102.09,3.73711639]
[1769985720034,13.56445766,102.15,102.09,3.73711639]
[1769985720632,13.56445766,102.15,102.11,3.73711639]
[1769985720824,13.56336321,102.16,102.11,3.73711639]
[1769985721131,3.77441129,102.15,102.11,3.73711639]
[1769985721328,3.77441129,102.15,102.1,13.53143568]
[1769985721533,3.77441129,102.15,102.1,3.73711639]
[1769985722520,13.56489493,102.14,102.1,3.73711639]
[1769985722921,13.56489493,102.14,102.1,13.53126937]
[1769985723739,9.79048364,102.14,102.11,3.73711639]
[1769985724926,27.2,102.17,102.11,3.73711639]
[1769985724927,3.77441129,102.16,102.12,3.73711639]
[1769985725119,8.89286604,102.18,102.13,3.73711639]
[1769985725428,13.56056867,102.19,102.13,3.73711639]
[1769985725820,13.65966296,102.2,102.13,3.73711639]
[1769985726421,13.65966296,102.2,102.15,3.73711639]
[1769985727143,3.87441129,102.2,102.15,3.73711639]
[1769985728443,13.65928727,102.2,102.15,3.73711639]
[1769985728828,0.1,102.2,102.17,3.637966]
[1769985729023,13.43602259,102.24,102.18,3.637966]
[1769985729223,3.65471165,102.24,102.18,3.637966]
[1769985729428,3.65471165,102.24,102.18,2.97474419]
[1769985730946,3.65471165,102.23,102.17,24.46667862]
[1769985731445,3.65471165,102.23,102.18,3.637966]
[1769985732132,13.43660136,102.23,102.19,3.637966]
[1769985732526,3.65471165,102.24,102.19,3.637966]
[1769985735331,13.43613666,102.24,102.2,3.637966]
[1769985737633,13.43613666,102.24,102.2,13.4222785]
[1769985737843,3.65471165,102.24,102.2,13.4222785]
[1769985738028,3.65471165,102.25,102.21,3.637966]
[1769985738228,13.43407019,102.26,102.21,3.637966]
[1769985738429,3.65471165,102.26,102.21,3.637966]
[1769985739953,3.65471165,102.26,102.22,13.42078736]
[1769985740450,3.65471165,102.27,102.23,3.637966]
[1769985740653,3.65471165,102.26,102.23,3.637966]
[1769985741448,3.65471165,102.26,102.21,3.637966]
[1769985741856,9.7799511,102.25,102.21,13.42172844]
[1769985742154,13.43466275,102.25,102.21,13.42172844]
[1769985742546,9.7799511,102.25,102.22,3.637966]
[1769985745243,3.65471165,102.25,102.22,3.637966]
[1769985747540,13.43479778,102.25,102.22,3.637966]
[1769985749452,13.43479778,102.25,102.21,13.42171973]
[1769985750055,37.88467553,102.25,102.21,3.637966]
[1769985750253,3.65471165,102.24,102.2,13.42254813]
[1769985750763,3.65471165,102.24,102.2,3.637966]
[1769985751849,9.78186442,102.23,102.2,3.637966]
[1769985752269,3.65471165,102.22,102.17,3.637966]
[1769985753353,3.65471165,102.22,102.15,3.637966]
[1769985753941,3.65471165,102.2,102.15,3.637966]
[1769985755350,13.44040496,102.19,102.15,3.637966]
[1769985757865,3.65471165,102.19,102.16,3.87768348]
[1769985758973,13.81298616,102.2,102.16,3.87768348]
[1769985759666,4.02751802,102.25,102.18,3.87768348]
[1769985759841,9.78090766,102.24,102.2,3.87768348]
[1769985760250,13.80772531,102.25,102.2,3.87768348]
[1769985760457,13.80727673,102.26,102.2,3.87768348]
[1769985762068,13.80727673,102.26,102.22,3.87768348]
[1769985762260,9.77975871,102.26,102.22,3.87768348]
[1769985763473,13.8059253,102.27,102.22,3.87768348]
[1769985763970,13.80478562,102.28,102.24,3.87768348]
[1769985765258,13.80478562,102.28,102.24,13.65834627]
[1769985765576,4.02751802,102.28,102.24,13.65834627]
[1769985765950,4.02751802,102.28,102.25,3.95375178]
[1769985766571,13.80494894,102.28,102.24,3.95375178]
[1769985766886,13.80494894,102.28,102.24,13.73463225]
[1769985769475,3.70671715,102.27,102.24,3.95375178]
[1769985769675,3.70671715,102.27,102.22,3.95375178]
[1769985769871,3.70671715,102.27,102.21,3.95375178]
[1769985770076,3.70671715,102.24,102.2,3.95375178]
[1769985771177,3.70671715,102.24,102.17,31.13375178]
[1769985771371,3.70671715,102.21,102.17,3.95375178]
[1769985772062,3.70671715,102.21,102.16,3.95375178]
[1769985772475,3.70671715,102.21,102.15,3.95375178]
[1769985773092,3.70671715,102.21,102.14,3.95375178]
[1769985773456,3.70671715,102.19,102.14,3.95375178]
[1769985774476,3.70671715,102.19,102.14,13.74423]
[1769985775565,9.786651,102.18,102.14,13.74423]
[1769985775766,13.49336815,102.18,102.14,13.74423]
[1769985776964,13.49336815,102.18,102.14,3.95375178]
[1769985777679,13.49336815,102.18,102.14,13.74418269]
[1769985778493,3.70671715,102.23,102.15,3.95375178]
[1769985778791,3.70671715,102.22,102.15,3.95375178]
[1769985778988,7.981988,102.22,102.15,3.95375178]
[1769985779170,3.70671715,102.21,102.15,3.95375178]
[1769985779488,9.78473581,102.2,102.17,3.95375178]
[1769985780668,13.49100845,102.21,102.17,3.95375178]
[1769985781979,13.49100845,102.21,102.17,13.74119318]
[1769985785498,13.49100845,102.21,102.18,3.95375178]
[1769985788685,3.86054095,102.22,102.18,3.95375178]
[1769985790589,3.86054095,102.22,102.18,13.7403682]
[1769985791189,13.6438297,102.22,102.18,13.7403682]
[1769985792593,9.78328875,102.22,102.19,3.89497904]
[1769985793581,3.86054095,102.22,102.17,3.89497904]
[1769985793882,3.86054095,102.22,102.18,3.89497904]
[1769985794594,3.86054095,102.21,102.18,3.89497904]
[1769985794805,3.86054095,102.21,102.16,13.68302592]
[1769985795097,3.86054095,102.21,102.14,9.79003331]
[1769985795405,4.27527085,102.18,102.11,9.79285789]
[1769985795603,9.78856695,102.16,102.08,58.77471264]
[1769985795778,3.86054095,102.15,102.08,58.77471264]
[1769985796899,13.65026197,102.15,102.1,9.79431929]
[1769985797096,13.64975142,102.16,102.11,3.89497904]
[1769985799105,9.78774124,102.17,102.13,3.89497904]
[1769985799305,7.44591231,102.17,102.13,3.89497904]
[1769985799507,17.9229546,102.18,102.13,3.89497904]
[1769985800703,17.9229546,102.18,102.13,9.79122991]
[1769985800887,17.9229546,102.18,102.14,3.89497904]